[Event "32nd NATO Chess Championship"]
[Site "Tartu, Estonia"]
[Date "2022.06.28"]
[Round "2.22"]
[White "Ivanovs, Aleksejs"]
[Black "Schott, Guido"]
[Result "0-1"]
[TimeControl "90 min + 30 sec increment from move one"]
[WhiteFideId "11626283"]
[BlackFideId "4646746"]
[WhiteElo "1784"]
[BlackElo "2028"]

1. d4 {[%clk 01:30:36]} {[%emt 00:00:22]} d6 {[%clk 01:30:44]} {[%emt
00:00:17]} 2. Nf3 {[%clk 01:30:28]} {[%emt 00:00:37]} Bg4 {[%clk 01:30:33]}
{[%emt 00:00:42]} 3. e4 {[%clk 01:29:00]} {[%emt 00:01:58]} Nf6 {[%clk
01:29:59]} {[%emt 00:01:04]} 4. Nc3 {[%clk 01:28:23]} {[%emt 00:01:07]} c6
{[%clk 01:29:42]} {[%emt 00:00:47]} 5. a4 {[%clk 01:26:04]} {[%emt 00:02:48]}
Nbd7 {[%clk 01:29:10]} {[%emt 00:01:02]} 6. Be2 {[%clk 01:24:05]} {[%emt
00:02:30]} e5 {[%clk 01:28:43]} {[%emt 00:00:58]} 7. O-O {[%clk 01:18:19]}
{[%emt 00:06:15]} Be7 {[%clk 01:28:44]} {[%emt 00:00:28]} 8. Be3 {[%clk
01:08:09]} {[%emt 00:10:41]} O-O {[%clk 01:23:53]} {[%emt 00:05:21]} 9. h3
{[%clk 01:03:17]} {[%emt 00:05:20]} Bh5 {[%clk 01:22:58]} {[%emt 00:01:27]} 10.
Qd3 {[%clk 00:50:58]} {[%emt 00:12:49]} Re8 {[%clk 01:16:54]} {[%emt 00:06:33]}
11. Rfe1 {[%clk 00:46:54]} {[%emt 00:04:35]} Qc7 {[%clk 01:05:39]} {[%emt
00:11:44]} 12. Rad1 {[%clk 00:42:40]} {[%emt 00:04:44]} a6 {[%clk 00:49:09]}
{[%emt 00:17:00]} 13. Nh4 {[%clk 00:32:30]} {[%emt 00:10:40]} Bxe2 {[%clk
00:45:31]} {[%emt 00:04:08]} 14. Rxe2 {[%clk 00:32:32]} {[%emt 00:00:27]} g6
{[%clk 00:41:40]} {[%emt 00:04:23]} 15. f4 {[%clk 00:25:24]} {[%emt 00:07:38]}
exf4 {[%clk 00:33:12]} {[%emt 00:08:57]} 16. Bxf4 {[%clk 00:24:50]} {[%emt
00:01:04]} Nh5 {[%clk 00:33:33]} {[%emt 00:00:10]} 17. Nxg6 {[%clk 00:20:52]}
{[%emt 00:04:27]} hxg6 {[%clk 00:32:11]} {[%emt 00:01:53]} 18. Rf1 {[%clk
00:17:49]} {[%emt 00:03:33]} Nxf4 {[%clk 00:21:46]} {[%emt 00:10:55]} 19. Rxf4
{[%clk 00:18:07]} {[%emt 00:00:11]} Rf8 {[%clk 00:20:49]} {[%emt 00:01:27]} 20.
Ref2 {[%clk 00:17:57]} {[%emt 00:00:40]} Kg7 {[%clk 00:17:06]} {[%emt
00:04:13]} 21. Qf3 {[%clk 00:16:49]} {[%emt 00:01:38]} f6 {[%clk 00:16:37]}
{[%emt 00:00:59]} 22. h4 {[%clk 00:16:17]} {[%emt 00:01:02]} Rh8 {[%clk
00:13:51]} {[%emt 00:03:16]} 23. Qg4 {[%clk 00:14:13]} {[%emt 00:02:34]} Raf8
{[%clk 00:09:12]} {[%emt 00:05:09]} 24. Rf5 {[%clk 00:11:05]} {[%emt 00:03:39]}
Rh6 {[%clk 00:06:53]} {[%emt 00:02:48]} 25. R2f3 {[%clk 00:10:33]} {[%emt
00:01:02]} Rfh8 {[%clk 00:05:13]} {[%emt 00:02:10]} 26. Rg3 {[%clk 00:07:38]}
{[%emt 00:03:25]} Nf8 {[%clk 00:04:58]} {[%emt 00:00:45]} 27. e5 {[%clk
00:05:59]} {[%emt 00:02:09]} Rxh4 {[%clk 00:02:19]} {[%emt 00:03:09]} 28. exf6+
{[%clk 00:06:07]} {[%emt 00:00:22]} Bxf6 {[%clk 00:02:39]} {[%emt 00:00:10]} 29.
Qf3 {[%clk 00:06:09]} {[%emt 00:00:28]} Rh1+ {[%clk 00:02:02]} {[%emt
00:01:08]} 30. Kf2 {[%clk 00:06:28]} {[%emt 00:00:10]} Bxd4+ {[%clk 00:02:24]}
{[%emt 00:00:08]} 31. Ke2 {[%clk 00:06:40]} {[%emt 00:00:18]} Qe7+ {[%clk
00:02:20]} {[%emt 00:00:34]} 32. Kd3 {[%clk 00:06:43]} {[%emt 00:00:27]} R8h4
{[%clk 00:02:02]} {[%emt 00:00:48]} 33. Ne4 {[%clk 00:06:22]} {[%emt 00:00:51]}
Rxe4 {[%clk 00:02:18]} {[%emt 00:00:15]} 34. Rf7+ {[%clk 00:05:38]} {[%emt
00:01:13]} Qxf7 {[%clk 00:02:38]} {[%emt 00:00:10]} 35. Qxe4 {[%clk 00:05:53]}
{[%emt 00:00:15]} Rd1+ {[%clk 00:03:02]} {[%emt 00:00:06]} 36. Ke2 {[%clk
00:05:54]} {[%emt 00:00:29]} Qf1# {[%clk 00:02:43]} {[%emt 00:00:05]} 0-1

[Event "32nd NATO Chess Championship"]
[Site "Tartu, Estonia"]
[Date "2022.06.28"]
[Round "2.23"]
[White "Nilsson, Erik"]
[Black "Rizihs, Valerijs"]
[Result "1/2-1/2"]
[TimeControl "90 min + 30 sec increment from move one"]
[WhiteFideId "1409000"]
[BlackFideId "11603380"]
[WhiteElo "2002"]
[BlackElo "1619"]

1. d4 {[%clk 01:30:57]} {[%emt 00:00:03]} d5 {[%clk 01:30:42]} {[%emt
00:00:17]} 2. c4 {[%clk 01:31:20]} {[%emt 00:00:07]} e6 {[%clk 01:30:42]}
{[%emt 00:00:30]} 3. Nc3 {[%clk 01:31:22]} {[%emt 00:00:07]} Nf6 {[%clk
01:30:18]} {[%emt 00:01:14]} 4. Bg5 {[%clk 01:31:46]} {[%emt 00:00:08]} Nbd7
{[%clk 01:29:59]} {[%emt 00:00:48]} 5. e3 {[%clk 01:31:28]} {[%emt 00:00:48]}
c6 {[%clk 01:28:53]} {[%emt 00:01:36]} 6. Nf3 {[%clk 01:31:21]} {[%emt
00:00:38]} Qa5 {[%clk 01:25:33]} {[%emt 00:03:49]} 7. cxd5 {[%clk 01:29:42]}
{[%emt 00:02:09]} exd5 {[%clk 01:18:19]} {[%emt 00:07:44]} 8. Nd2 {[%clk
01:29:03]} {[%emt 00:01:09]} Bb4 {[%clk 01:14:52]} {[%emt 00:03:57]} 9. Qc2
{[%clk 01:27:45]} {[%emt 00:01:48]} O-O {[%clk 01:13:49]} {[%emt 00:01:33]} 10.
Be2 {[%clk 01:25:40]} {[%emt 00:02:35]} Ne4 {[%clk 01:09:46]} {[%emt 00:04:33]}
11. Ndxe4 {[%clk 01:25:39]} {[%emt 00:00:31]} dxe4 {[%clk 01:10:08]} {[%emt
00:00:08]} 12. Bf4 {[%clk 01:20:13]} {[%emt 00:05:56]} Nf6 {[%clk 01:07:14]}
{[%emt 00:03:24]} 13. O-O {[%clk 01:20:18]} {[%emt 00:00:25]} Bxc3 {[%clk
01:06:38]} {[%emt 00:01:07]} 14. bxc3 {[%clk 01:20:07]} {[%emt 00:00:41]} Nd5
{[%clk 01:06:43]} {[%emt 00:00:24]} 15. Bd6 {[%clk 01:06:44]} {[%emt 00:13:53]}
Rd8 {[%clk 00:58:59]} {[%emt 00:08:13]} 16. Bb4 {[%clk 01:06:03]} {[%emt
00:01:12]} Nxb4 {[%clk 00:53:45]} {[%emt 00:05:44]} 17. cxb4 {[%clk 01:06:23]}
{[%emt 00:00:10]} Qxb4 {[%clk 00:54:12]} {[%emt 00:00:04]} 18. Qxe4 {[%clk
01:06:35]} {[%emt 00:00:15]} Be6 {[%clk 00:54:03]} {[%emt 00:00:40]} 19. Qc2
{[%emt 00:09:58]} 1/2-1/2

[Event "32nd NATO Chess Championship"]
[Site "Tartu, Estonia"]
[Date "2022.06.28"]
[Round "2.24"]
[White "Balmaceda, Enrico"]
[Black "Papler, Peter"]
[Result "1/2-1/2"]
[TimeControl "90 min + 30 sec increment from move one"]
[WhiteFideId "2089785"]
[BlackFideId "14609770"]
[WhiteElo "1958"]
[BlackElo "1714"]

1. d4 {[%clk 01:30:42]} {[%emt 00:00:17]} Nf6 {[%clk 01:30:44]} {[%emt
00:00:16]} 2. Bg5 {[%clk 01:31:05]} {[%emt 00:00:07]} d6 {[%clk 01:30:43]}
{[%emt 00:00:31]} 3. c4 {[%clk 01:31:08]} {[%emt 00:00:28]} Nbd7 {[%clk
01:31:01]} {[%emt 00:00:12]} 4. Nc3 {[%clk 01:31:24]} {[%emt 00:00:14]} h6
{[%clk 01:30:55]} {[%emt 00:00:35]} 5. Bh4 {[%clk 01:29:26]} {[%emt 00:02:28]}
c6 {[%clk 01:30:25]} {[%emt 00:01:01]} 6. Nf3 {[%clk 01:29:04]} {[%emt
00:00:51]} Qc7 {[%clk 01:30:33]} {[%emt 00:00:22]} 7. e4 {[%clk 01:25:22]}
{[%emt 00:04:12]} e5 {[%clk 01:30:43]} {[%emt 00:00:20]} 8. Bxf6 {[%clk
01:18:03]} {[%emt 00:07:50]} Nxf6 {[%clk 01:30:58]} {[%emt 00:00:13]} 9. Be2
{[%clk 01:18:26]} {[%emt 00:00:08]} Be7 {[%clk 01:31:09]} {[%emt 00:00:19]} 10.
O-O {[%clk 01:18:13]} {[%emt 00:00:43]} O-O {[%clk 01:31:29]} {[%emt 00:00:10]}
11. Qd2 {[%clk 01:16:01]} {[%emt 00:02:42]} Rd8 {[%clk 01:24:47]} {[%emt
00:07:12]} 12. d5 {[%clk 01:08:10]} {[%emt 00:08:21]} a6 {[%clk 01:23:51]}
{[%emt 00:01:26]} 13. a4 {[%clk 01:04:54]} {[%emt 00:03:47]} c5 {[%clk
01:18:20]} {[%emt 00:06:00]} 14. Ra3 {[%clk 00:52:43]} {[%emt 00:12:41]} Qa5
{[%clk 01:13:28]} {[%emt 00:05:22]} 15. Ne1 {[%clk 00:41:52]} {[%emt 00:11:21]}
Re8 {[%clk 01:07:10]} {[%emt 00:06:48]} 16. f4 {[%clk 00:24:31]} {[%emt
00:17:51]} Bf8 {[%clk 01:03:57]} {[%emt 00:03:44]} 17. f5 {[%clk 00:21:03]}
{[%emt 00:03:58]} Bd7 {[%clk 01:03:55]} {[%emt 00:00:31]} 18. g4 {[%clk
00:21:09]} {[%emt 00:00:25]} Nh7 {[%clk 01:02:07]} {[%emt 00:02:17]} 19. h4
{[%clk 00:17:38]} {[%emt 00:04:01]} Qd8 {[%clk 01:02:19]} {[%emt 00:00:18]} 20.
Nf3 {[%clk 00:16:48]} {[%emt 00:01:20]} Be7 {[%clk 01:00:06]} {[%emt 00:02:43]}
21. Qe1 {[%clk 00:17:05]} {[%emt 00:00:13]} g5 {[%clk 00:55:49]} {[%emt
00:04:47]} 22. fxg6 {[%clk 00:13:05]} {[%emt 00:04:30]} fxg6 {[%clk 00:56:08]}
{[%emt 00:00:11]} 23. Qg3 {[%clk 00:12:08]} {[%emt 00:01:27]} Rf8 {[%clk
00:52:31]} {[%emt 00:04:07]} 24. Nd1 {[%clk 00:10:40]} {[%emt 00:01:58]} Rf4
{[%clk 00:39:16]} {[%emt 00:13:45]} 25. Nf2 {[%clk 00:10:38]} {[%emt 00:00:32]}
Qb6 {[%clk 00:39:34]} {[%emt 00:00:12]} 26. Re3 {[%clk 00:08:58]} {[%emt
00:02:09]} Raf8 {[%clk 00:36:01]} {[%emt 00:04:03]} 27. b3 {[%clk 00:09:07]}
{[%emt 00:00:21]} Qd8 {[%clk 00:35:54]} {[%emt 00:00:37]} 28. Kg2 {[%clk
00:06:44]} {[%emt 00:02:54]} Nf6 {[%clk 00:34:11]} {[%emt 00:02:14]} 29. Nh2
{[%clk 00:07:04]} {[%emt 00:00:09]} Kh7 {[%clk 00:31:42]} {[%emt 00:02:58]}
1/2-1/2

[Event "32nd NATO Chess Championship"]
[Site "Tartu, Estonia"]
[Date "2022.06.28"]
[Round "2.25"]
[White "Smit, Jan"]
[Black "Hater, David"]
[Result "1/2-1/2"]
[TimeControl "90 min + 30 sec increment from move one"]
[WhiteFideId "1052047"]
[BlackFideId "2017776"]
[WhiteElo "1741"]
[BlackElo "1944"]

1. Nf3 {[%clk 01:30:55]} {[%emt 00:00:04]} Nf6 {[%clk 01:30:53]} {[%emt
00:00:08]} 2. d4 {[%clk 01:31:18]} {[%emt 00:00:07]} g6 {[%clk 01:31:16]}
{[%emt 00:00:07]} 3. Bg5 {[%clk 01:31:38]} {[%emt 00:00:10]} Bg7 {[%clk
01:31:38]} {[%emt 00:00:08]} 4. Nbd2 {[%clk 01:31:57]} {[%emt 00:00:11]} d5
{[%clk 01:31:56]} {[%emt 00:00:12]} 5. e3 {[%clk 01:31:51]} {[%emt 00:00:37]}
O-O {[%clk 01:31:29]} {[%emt 00:00:56]} 6. Bd3 {[%clk 01:32:11]} {[%emt
00:00:10]} Nbd7 {[%clk 01:31:47]} {[%emt 00:00:13]} 7. c3 {[%clk 01:32:08]}
{[%emt 00:00:33]} b6 {[%clk 01:30:25]} {[%emt 00:01:52]} 8. O-O {[%clk
01:32:14]} {[%emt 00:00:23]} Bb7 {[%clk 01:30:33]} {[%emt 00:00:23]} 9. a4
{[%clk 01:30:03]} {[%emt 00:02:42]} c5 {[%clk 01:26:43]} {[%emt 00:04:20]} 10.
Qe2 {[%clk 01:22:46]} {[%emt 00:07:47]} h6 {[%clk 01:21:11]} {[%emt 00:06:01]}
1/2-1/2

[Event "32nd NATO Chess Championship"]
[Site "Tartu, Estonia"]
[Date "2022.06.28"]
[Round "2.28"]
[White "Charles, Freddy"]
[Black "Csizmadia, Csaba"]
[Result "1-0"]
[TimeControl "90 min + 30 sec increment from move one"]
[WhiteFideId "1742"]
[BlackFideId "763942"]
[WhiteElo "1742"]
[BlackElo "1875"]

1. d4 {[%clk 01:30:57]} {[%emt 00:00:02]} Nf6 {[%clk 01:30:58]} {[%emt
00:00:03]} 2. Bf4 {[%clk 01:31:18]} {[%emt 00:00:08]} d5 {[%clk 01:31:16]}
{[%emt 00:00:12]} 3. e3 {[%clk 01:30:56]} {[%emt 00:00:51]} c5 {[%clk
01:31:39]} {[%emt 00:00:07]} 4. Nc3 {[%clk 01:31:00]} {[%emt 00:00:26]} e6
{[%clk 01:30:15]} {[%emt 00:01:55]} 5. Nb5 {[%clk 01:29:22]} {[%emt 00:02:08]}
Na6 {[%clk 01:30:12]} {[%emt 00:00:33]} 6. a4 {[%clk 01:28:27]} {[%emt
00:01:25]} Be7 {[%clk 01:28:48]} {[%emt 00:01:54]} 7. h3 {[%clk 01:28:19]}
{[%emt 00:00:37]} O-O {[%clk 01:29:10]} {[%emt 00:00:09]} 8. Nf3 {[%clk
01:27:46]} {[%emt 00:01:03]} c4 {[%clk 01:29:06]} {[%emt 00:00:34]} 9. c3
{[%clk 01:26:58]} {[%emt 00:01:17]} Qb6 {[%clk 01:25:35]} {[%emt 00:04:01]} 10.
Ne5 {[%clk 01:26:29]} {[%emt 00:00:59]} Nd7 {[%clk 01:25:17]} {[%emt 00:00:48]}
11. Qc2 {[%clk 01:25:32]} {[%emt 00:01:27]} Nxe5 {[%clk 01:23:49]} {[%emt
00:01:58]} 12. Bxe5 {[%clk 01:24:29]} {[%emt 00:01:33]} Bd7 {[%clk 01:24:12]}
{[%emt 00:00:08]} 13. Na3 {[%clk 01:21:17]} {[%emt 00:03:41]} Rfc8 {[%clk
01:23:48]} {[%emt 00:00:54]} 14. Be2 {[%clk 01:20:15]} {[%emt 00:01:33]} Qa5
{[%clk 01:22:21]} {[%emt 00:01:57]} 15. Nb1 {[%clk 01:16:48]} {[%emt 00:03:56]}
b5 {[%clk 01:21:44]} {[%emt 00:01:08]} 16. O-O {[%clk 01:12:39]} {[%emt
00:04:39]} bxa4 {[%clk 01:22:00]} {[%emt 00:00:14]} 17. Nd2 {[%clk 01:12:41]}
{[%emt 00:00:27]} Qb6 {[%clk 01:22:05]} {[%emt 00:00:24]} 18. Rfb1 {[%clk
01:11:46]} {[%emt 00:01:26]} Nc7 {[%clk 01:21:39]} {[%emt 00:00:56]} 19. Bd1
{[%clk 01:08:02]} {[%emt 00:04:14]} Bb5 {[%clk 01:14:53]} {[%emt 00:07:17]} 20.
Qc1 {[%clk 01:06:38]} {[%emt 00:01:54]} Qc6 {[%clk 01:15:16]} {[%emt 00:00:08]}
21. Bc2 {[%clk 01:06:52]} {[%emt 00:00:16]} f6 {[%clk 01:11:42]} {[%emt
00:04:04]} 22. Bh2 {[%clk 01:06:17]} {[%emt 00:01:04]} Ne8 {[%clk 01:11:00]}
{[%emt 00:01:13]} 23. Qd1 {[%clk 01:06:28]} {[%emt 00:00:18]} Nd6 {[%clk
01:10:38]} {[%emt 00:00:52]} 24. Bxa4 {[%clk 01:05:49]} {[%emt 00:01:10]} a6
{[%clk 01:11:00]} {[%emt 00:00:09]} 25. Bc2 {[%clk 01:05:21]} {[%emt 00:00:57]}
Rf8 {[%clk 01:09:06]} {[%emt 00:02:24]} 26. Qh5 {[%clk 01:00:54]} {[%emt
00:04:56]} f5 {[%clk 01:09:24]} {[%emt 00:00:12]} 27. Be5 {[%clk 00:59:12]}
{[%emt 00:02:12]} Nf7 {[%clk 01:07:58]} {[%emt 00:01:56]} 28. f4 {[%clk
00:58:27]} {[%emt 00:01:15]} Nxe5 {[%clk 01:07:35]} {[%emt 00:00:54]} 29. dxe5
{[%clk 00:57:46]} {[%emt 00:01:11]} Bc5 {[%clk 01:07:52]} {[%emt 00:00:14]} 30.
Qe2 {[%clk 00:58:01]} {[%emt 00:00:14]} Qb6 {[%clk 01:08:04]} {[%emt 00:00:19]}
31. Kf2 {[%clk 00:57:23]} {[%emt 00:01:07]} g5 {[%clk 01:03:15]} {[%emt
00:05:20]} 32. g3 {[%clk 00:57:31]} {[%emt 00:00:22]} gxf4 {[%clk 01:02:48]}
{[%emt 00:00:57]} 33. gxf4 {[%clk 00:57:47]} {[%emt 00:00:13]} Kh8 {[%clk
01:03:02]} {[%emt 00:00:16]} 34. Nf3 {[%clk 00:55:51]} {[%emt 00:02:25]} h6
{[%clk 01:00:46]} {[%emt 00:02:48]} 35. Nd4 {[%clk 00:55:17]} {[%emt 00:01:02]}
Rg8 {[%clk 01:00:44]} {[%emt 00:00:33]} 36. Qh5 {[%clk 00:54:08]} {[%emt
00:01:39]} Kh7 {[%clk 01:00:29]} {[%emt 00:00:46]} 37. Qf7+ {[%clk 00:52:58]}
{[%emt 00:01:39]} Rg7 {[%clk 00:59:39]} {[%emt 00:01:20]} 38. Qxe6 {[%clk
00:52:55]} {[%emt 00:00:32]} Bxd4 {[%clk 00:59:34]} {[%emt 00:00:36]} 39. Qxf5+
{[%clk 00:49:39]} {[%emt 00:03:45]} Kh8 {[%clk 00:58:29]} {[%emt 00:01:36]} 40.
exd4 {[%clk 00:48:13]} {[%emt 00:01:55]} Bd7 {[%clk 00:58:43]} {[%emt
00:00:16]} 41. Qh5 {[%clk 00:46:20]} {[%emt 00:02:23]} Rf8 {[%clk 00:58:38]}
{[%emt 00:00:36]} 42. Rg1 {[%clk 00:34:48]} {[%emt 00:12:00]} Rxf4+ {[%clk
00:56:34]} {[%emt 00:02:36]} 43. Ke3 {[%clk 00:33:17]} {[%emt 00:02:00]} Rgf7
{[%clk 00:56:29]} {[%emt 00:00:35]} 44. Rg3 {[%clk 00:26:46]} {[%emt 00:07:00]}
Bf5 {[%clk 00:53:32]} {[%emt 00:03:28]} 45. Qxf7 {[%clk 00:23:03]} {[%emt
00:04:13]} 1-0

[Event "32nd NATO Chess Championship"]
[Site "Tartu, Estonia"]
[Date "2022.06.28"]
[Round "2.29"]
[White "Heran-Boily, Samuel"]
[Black "Voroblievas, Arturas"]
[Result "1/2-1/2"]
[TimeControl "90 min + 30 sec increment from move one"]
[WhiteFideId "1554565"]
[BlackFideId "12803430"]
[WhiteElo "1871"]
[BlackElo "1740"]

1. e4 {[%clk 01:30:33]} {[%emt 00:00:26]} e5 {[%clk 01:30:55]} {[%emt
00:00:05]} 2. Nf3 {[%clk 01:30:58]} {[%emt 00:00:05]} Nc6 {[%clk 01:31:19]}
{[%emt 00:00:05]} 3. Bb5 {[%clk 01:31:22]} {[%emt 00:00:06]} a6 {[%clk
01:31:44]} {[%emt 00:00:06]} 4. Ba4 {[%clk 01:31:49]} {[%emt 00:00:04]} Nf6
{[%clk 01:32:08]} {[%emt 00:00:06]} 5. d3 {[%clk 01:32:13]} {[%emt 00:00:06]}
b5 {[%clk 01:32:14]} {[%emt 00:00:24]} 6. Bb3 {[%clk 01:32:33]} {[%emt
00:00:10]} Bc5 {[%clk 01:31:49]} {[%emt 00:00:55]} 7. O-O {[%clk 01:32:51]}
{[%emt 00:00:11]} h6 {[%clk 01:31:33]} {[%emt 00:00:46]} 8. c3 {[%clk
01:32:51]} {[%emt 00:00:31]} O-O {[%clk 01:31:56]} {[%emt 00:00:07]} 9. Re1
{[%clk 01:32:25]} {[%emt 00:00:56]} d6 {[%clk 01:31:08]} {[%emt 00:01:18]} 10.
Nbd2 {[%clk 01:32:44]} {[%emt 00:00:11]} Ng4 {[%clk 01:30:40]} {[%emt
00:00:56]} 11. Re2 {[%clk 01:32:49]} {[%emt 00:00:26]} Na5 {[%clk 01:28:51]} 12.
Bc2 {[%clk 01:33:09]} {[%emt 00:02:29]} Nc6 {[%emt 00:00:33]} 13. h3 {[%clk
01:33:21]} {[%emt 00:00:02]} Nf6 {[%clk 01:28:59]} {[%emt 00:00:37]} 14. Nf1
{[%clk 01:33:34]} Nh5 {[%clk 01:28:59]} {[%emt 00:00:44]} 15. Re1 {[%clk
01:21:27]} Bb6 {[%clk 01:27:55]} {[%emt 00:14:13]} 16. Nxe5 {[%clk 01:20:14]}
Qh4 {[%clk 01:22:49]} {[%emt 00:07:15]} 17. Nf3 {[%clk 01:07:03]} Qxf2+ {[%clk
01:12:14]} {[%emt 00:24:49]} 18. Kh2 {[%clk 01:05:33]} Ne5 {[%clk 01:10:06]}
{[%emt 00:04:38]} 19. Nd4 {[%clk 01:00:48]} Bxd4 {[%clk 00:57:53]} {[%emt
00:17:58]} 20. cxd4 {[%clk 00:58:13]} Nf3+ {[%clk 00:57:31]} {[%emt 00:03:56]}
21. Qxf3 {[%clk 00:48:05]} Qxe1 {[%clk 00:52:09]} 22. e5 {[%clk 00:48:05]} Bb7
{[%clk 00:52:09]} {[%emt 00:13:31]} 23. Qxh5 Qxf1 {[%clk 00:52:06]} 24. Qg4
{[%clk 00:43:18]} {[%emt 00:00:27]} f5 {[%clk 00:40:18]} {[%emt 00:12:17]} 25.
Qg6 {[%clk 00:38:22]} {[%emt 00:05:27]} f4 {[%clk 00:36:21]} {[%emt 00:04:26]}
26. Bb3+ {[%clk 00:21:44]} {[%emt 00:17:09]} d5 {[%clk 00:33:23]} {[%emt
00:03:28]} 27. Qg4 {[%clk 00:16:49]} {[%emt 00:05:24]} Rae8 {[%clk 00:20:22]}
{[%emt 00:13:30]} 28. Qf3 {[%clk 00:15:55]} {[%emt 00:01:26]} Qxf3 {[%clk
00:19:58]} {[%emt 00:00:54]} 29. gxf3 {[%clk 00:16:19]} {[%emt 00:00:06]} c6
{[%clk 00:20:18]} {[%emt 00:00:10]} 30. Bd2 {[%clk 00:16:17]} {[%emt 00:00:33]}
Bc8 {[%clk 00:20:25]} {[%emt 00:00:23]} 31. Rc1 {[%clk 00:12:55]} {[%emt
00:03:52]} Bd7 {[%clk 00:20:45]} {[%emt 00:00:10]} 32. Rg1 {[%clk 00:10:42]}
{[%emt 00:02:43]} Kh7 {[%clk 00:16:01]} {[%emt 00:05:14]} 33. Rc1 {[%clk
00:09:54]} {[%emt 00:01:17]} Rf5 {[%clk 00:15:35]} {[%emt 00:00:55]} 34. Rg1
{[%clk 00:09:08]} {[%emt 00:01:16]} Rh5 {[%clk 00:11:55]} {[%emt 00:04:08]} 35.
Bxf4 {[%clk 00:09:05]} {[%emt 00:00:35]} Rf8 {[%clk 00:11:41]} {[%emt
00:00:45]} 36. Bg3 {[%clk 00:04:55]} {[%emt 00:04:40]} Bxh3 {[%clk 00:10:50]}
{[%emt 00:01:20]} 37. Rc1 {[%clk 00:04:14]} {[%emt 00:01:11]} Bd7+ {[%clk
00:07:35]} {[%emt 00:03:45]} 38. Kg2 {[%clk 00:04:33]} {[%emt 00:00:11]} Rg5
{[%clk 00:07:31]} {[%emt 00:00:33]} 39. Bd1 {[%clk 00:04:14]} {[%emt 00:00:50]}
Rf4 {[%clk 00:05:54]} {[%emt 00:02:08]} 40. Kf2 {[%clk 00:04:03]} {[%emt
00:00:40]} Rxd4 {[%clk 00:05:58]} {[%emt 00:00:26]} 41. f4 {[%clk 00:04:17]}
{[%emt 00:00:17]} Rf5 {[%clk 00:04:48]} {[%emt 00:01:40]} 42. Ke3 {[%clk
00:04:18]} {[%emt 00:00:29]} Rb4 {[%clk 00:04:33]} {[%emt 00:00:45]} 43. b3
{[%clk 00:04:37]} {[%emt 00:00:12]} g5 {[%clk 00:04:02]} {[%emt 00:01:00]} 44.
d4 {[%clk 00:04:44]} {[%emt 00:00:23]} gxf4+ {[%clk 00:04:20]} {[%emt
00:00:12]} 45. Bxf4 {[%clk 00:04:53]} {[%emt 00:00:22]} c5 {[%clk 00:04:37]}
{[%emt 00:00:10]} 46. Rxc5 {[%clk 00:04:59]} {[%emt 00:00:27]} Rxf4 {[%clk
00:04:58]} {[%emt 00:00:08]} 47. Kxf4 {[%clk 00:05:10]} {[%emt 00:00:19]} Rxd4+
{[%clk 00:05:24]} {[%emt 00:00:04]} 48. Ke3 {[%clk 00:04:28]} {[%emt 00:01:12]}
Rxd1 {[%clk 00:05:09]} {[%emt 00:00:45]} 49. Rc7 {[%clk 00:04:52]} {[%emt
00:00:06]} Kg6 {[%clk 00:04:49]} {[%emt 00:00:50]} 50. Rxd7 {[%clk 00:05:11]}
{[%emt 00:00:11]} Kf5 {[%clk 00:05:01]} {[%emt 00:00:17]} 51. Rd6 {[%clk
00:05:04]} {[%emt 00:00:38]} Kxe5 {[%clk 00:05:08]} {[%emt 00:00:22]} 52. Rxh6
{[%clk 00:05:23]} {[%emt 00:00:12]} a5 {[%clk 00:05:08]} {[%emt 00:00:31]} 53.
Ra6 {[%clk 00:05:39]} {[%emt 00:00:13]} a4 {[%clk 00:04:06]} {[%emt 00:01:32]}
54. bxa4 {[%clk 00:05:59]} {[%emt 00:00:10]} bxa4 {[%clk 00:04:33]} {[%emt
00:00:03]} 55. Rxa4 {[%clk 00:06:24]} {[%emt 00:00:05]} Rh1 {[%clk 00:04:16]}
{[%emt 00:00:46]} 56. Ra8 {[%clk 00:05:57]} {[%emt 00:00:58]} Rh3+ {[%clk
00:04:34]} {[%emt 00:00:11]} 57. Kd2 {[%clk 00:06:17]} {[%emt 00:00:11]} Kd4
{[%clk 00:04:53]} {[%emt 00:00:10]} 58. Ra4+ {[%clk 00:06:30]} {[%emt
00:00:17]} Kc5 {[%clk 00:05:16]} {[%emt 00:00:06]} 59. Ra5+ {[%clk 00:06:54]}
{[%emt 00:00:08]} Kc4 {[%clk 00:05:09]} {[%emt 00:00:36]} 60. Ra4+ {[%clk
00:07:12]} {[%emt 00:00:12]} Kb5 {[%clk 00:05:22]} {[%emt 00:00:17]} 61. Ra8
{[%clk 00:07:35]} {[%emt 00:00:08]} Kb4 {[%clk 00:05:23]} {[%emt 00:00:28]} 62.
Rb8+ {[%clk 00:07:04]} {[%emt 00:01:02]} Kc4 {[%clk 00:05:35]} {[%emt
00:00:16]} 63. Ra8 {[%clk 00:06:47]} {[%emt 00:00:49]} d4 {[%clk 00:05:42]}
{[%emt 00:00:23]} 64. Rc8+ {[%clk 00:06:55]} {[%emt 00:00:21]} Kb4 {[%clk
00:06:01]} {[%emt 00:00:10]} 65. Rd8 {[%clk 00:07:01]} {[%emt 00:00:25]} Kc4
{[%clk 00:06:12]} {[%emt 00:00:19]} 66. Rc8+ {[%clk 00:07:26]} {[%emt
00:00:06]} Kd5 {[%clk 00:06:27]} {[%emt 00:00:14]} 67. Rd8+ {[%clk 00:07:46]}
{[%emt 00:00:10]} Kc5 {[%clk 00:06:50]} {[%emt 00:00:07]} 68. Rc8+ {[%clk
00:08:09]} {[%emt 00:00:08]} Kb4 {[%clk 00:06:21]} {[%emt 00:00:58]} 69. Rd8
{[%clk 00:08:30]} {[%emt 00:00:10]} Kc5 {[%clk 00:06:41]} {[%emt 00:00:10]} 70.
Rc8+ {[%clk 00:08:19]} {[%emt 00:00:41]} Kd6 {[%clk 00:06:28]} {[%emt
00:00:42]} 71. Rd8+ {[%clk 00:08:39]} {[%emt 00:00:10]} Kc5 {[%clk 00:06:57]}
{[%emt 00:00:01]} 1/2-1/2

[Event "32nd NATO Chess Championship"]
[Site "Tartu, Estonia"]
[Date "2022.06.28"]
[Round "2.30"]
[White "Steen, Kris"]
[Black "Graham, Frazer"]
[Result "1/2-1/2"]
[TimeControl "90 min + 30 sec increment from move one"]
[WhiteFideId "264571"]
[BlackFideId "479993"]
[WhiteElo "1735"]
[BlackElo "1864"]

1. c4 Nf6 2. Nc3 e6 3. e4 d5 4. cxd5 exd5 5. e5 Ng4 6. d4 g6 7. Be2 Nh6 8. Nf3
Nf5 9. Qb3 c6 10. Bd3 Qb6 11. Qxb6 axb6 12. O-O Be7 13. h3 h5 14. Bc2 b5 15.
Bd2 Ng7 16. a4 b4 17. Na2 Na6 18. b3 Bf5 19. Bd1 Ne6 20. Be2 Rb8 {[%clk
00:00:00]} 21. Rac1 {[%clk 01:30:36]} 1/2-1/2